fUST/lending_fUST_20260516
["ID","MTS","AMOUNT","RATE_DAILY","PERIOD"]
[422391567,1778921438000,-196.52151906,5.479e-05,7]
[422391572,1778921438000,-463.29682763,5.479e-05,7]
[422391580,1778921438000,-269.01830218,5.479e-05,7]
[422391561,1778921438000,-393.04303812,5.479e-05,7]
[422391554,1778921438000,-352.00272844,5.479e-05,7]
[422391532,1778921438000,-598.27460339,5.479e-05,7]
[422391552,1778921438000,-176.00136422,5.479e-05,7]
[422391565,1778921438000,-511.84207836,5.479e-05,7]
[422391510,1778921438000,-305.68793457,5.479e-05,7]
[422391508,1778921438000,-155.49580113,5.479e-05,7]
[422391514,1778921438000,-171.19586048,5.479e-05,4]
[422391515,1778921438000,-342.39172097,5.479e-05,4]
[422391512,1778921438000,-458.53190186,5.479e-05,7]
[422391526,1778921438000,-156.18067393,5.479e-05,7]
[422391517,1778921438000,-513.58758145,5.479e-05,4]
[422391521,1778921438000,-309.8146069,5.479e-05,7]
[422391519,1778921438000,-154.90730345,5.479e-05,7]
[422391522,1778921438000,-398.8497356,5.479e-05,7]
[422391524,1778921438000,-464.72191034,5.479e-05,7]
[422391529,1778921438000,-187.91477123,5.479e-05,7]
[422391538,1778921438000,-563.74431369,5.479e-05,7]
[422391548,1778921438000,-409.41520201,5.479e-05,7]
[422391550,1778921438000,-149.82141022,5.479e-05,7]
[422391582,1778921438000,-173.77285782,5.479e-05,7]
[422391615,1778921438000,-527.65494781,5.479e-05,7]
[422391569,1778921438000,-154.43227588,5.479e-05,7]
[422391609,1778921438000,-176.65658832,5.479e-05,7]
[422391618,1778921438000,-165.45763263,5.479e-05,7]
[422391621,1778921438000,-496.3728979,5.479e-05,7]
[422391617,1778921438000,-346.8741303,5.479e-05,7]
[422391611,1778921438000,-529.96976497,5.479e-05,7]
[422391616,1778921438000,-173.43706515,5.479e-05,7]
[422391623,1778921438000,-303.13775349,5.479e-05,7]
[422391625,1778921438000,-187.35759059,5.479e-05,7]
[422391622,1778921438000,-151.56887674,5.479e-05,7]
[422391627,1778921438000,-374.71518118,5.479e-05,7]
[422391624,1778921438000,-454.70663023,5.479e-05,7]
[422391630,1778921438000,-237.97497609,5.479e-05,7]
[422391629,1778921438000,-214.52415528,5.479e-05,7]
[422391628,1778921438000,-562.07277177,5.479e-05,7]
[422391626,1778921438000,-191.32940098,5.479e-05,7]
[422391584,1778921438000,-807.05490654,5.479e-05,7]
[422391612,1778921438000,-175.8849826,5.479e-05,7]
[422391620,1778921438000,-330.91526526,5.479e-05,7]
[422391610,1778921438000,-353.31317665,5.479e-05,7]
[422391570,1778921438000,-589.56455718,5.479e-05,7]
[422391598,1778921438000,-347.54571565,5.479e-05,7]
[422391588,1778921438000,-153.01437077,5.479e-05,2]
[422391602,1778921438000,-165.50757743,5.479e-05,7]
[422391586,1778921438000,-538.03660436,5.479e-05,7]
[422391613,1778921438000,-326.5494062,5.479e-05,7]
[422391600,1778921438000,-852.19444063,5.479e-05,7]
[422391604,1778921438000,-568.12962709,5.479e-05,7]
[422391594,1778921438000,-521.31857347,5.479e-05,7]
[422391606,1778921438000,-496.5227323,5.479e-05,7]
[422391592,1778921438000,-459.04311231,5.479e-05,2]
[422391596,1778921438000,-284.06481354,5.479e-05,7]
[422391607,1778921438000,-331.01515487,5.479e-05,7]
[422391614,1778921438000,-351.76996521,5.479e-05,7]
[422391619,1778921438000,-520.31119545,5.479e-05,7]
[422391590,1778921438000,-306.02874154,5.479e-05,2]
[422391644,1778921440000,-289.52779449,5.479e-05,7]
[422391645,1778921440000,-569.27620725,5.479e-05,7]
[422391643,1778921440000,-191.07333448,5.479e-05,7]
[422391663,1778921446000,-74.2962586,5.479e-05,7]
[422391664,1778921446000,-188.80968373,5.479e-05,7]
[422391665,1778921446000,-377.61936746,5.479e-05,7]
[422391666,1778921446000,-501.34684065,5.479e-05,7]
[422392031,1778922215000,5000.0,5e-05,2]
[422392034,1778922244000,262.108369,5e-05,2]
[422392123,1778922632000,-198.9489865,5.478e-05,2]
[422392122,1778922632000,-500.0,5.478e-05,2]
[422392121,1778922632000,-500.0,5.478e-05,2]
[422392118,1778922632000,-245.1993811,5.477e-05,2]
[422392120,1778922632000,-364.00917966,5.478e-05,2]
[422392119,1778922632000,-212.20886894,5.478e-05,2]
[422392117,1778922632000,-54.8006189,5.477e-05,2]
[422392116,1778922632000,-346.95332308,5.28e-05,2]
[422392141,1778922638000,-251.51893487,5.478e-05,2]
[422392143,1778922638000,-168.58503954,5.478e-05,2]
[422392149,1778922638000,-377.00047004,5.479e-05,7]
[422392147,1778922638000,-566.42905119,5.479e-05,7]
[422392145,1778922638000,-715.017804,5.479e-05,7]
[422392166,1778922638000,-1193.25754588,5.479e-05,7]
[422392173,1778922638000,-862.47127339,5.479e-05,7]
[422392176,1778922638000,-121.12284669,5.479e-05,7]
[422392272,1778922640000,-1721.22102609,5.479e-05,7]
[422392317,1778922643000,-310.10398747,5.479e-05,7]
[422392313,1778922643000,-549.8872216,5.479e-05,7]
[422392315,1778922643000,-310.87072912,5.479e-05,7]
[422392309,1778922643000,-366.59148106,5.479e-05,7]
[422392311,1778922643000,-155.43536456,5.479e-05,7]
[422392307,1778922643000,-494.19107348,5.479e-05,7]
[422392308,1778922643000,-183.29574053,5.479e-05,7]
[422392305,1778922643000,-372.20981163,5.479e-05,7]
[422392316,1778922643000,-466.30609367,5.479e-05,7]
[422392306,1778922643000,-1110.36340882,5.479e-05,7]
[422392304,1778922643000,-340.87587616,5.479e-05,7]
[422392294,1778922643000,-579.05558897,5.479e-05,7]
[422392303,1778922643000,-511.31381423,5.479e-05,7]
[422392299,1778922643000,-694.52949998,5.479e-05,7]
[422392300,1778922643000,-463.01966666,5.479e-05,7]
[422392301,1778922643000,-988.38214696,5.479e-05,7]
[422392298,1778922643000,-320.4503957,5.479e-05,7]
[422392295,1778922643000,-480.67559356,5.479e-05,7]
[422392296,1778922643000,-868.58338346,5.479e-05,7]
[422392293,1778922643000,-160.22519785,5.479e-05,7]
[422392318,1778922643000,-465.15598121,5.479e-05,7]
[422392292,1778922643000,-1806.75006118,5.479e-05,7]
[422392302,1778922643000,-170.43793808,5.479e-05,7]
[422392319,1778922643000,-159.34906376,5.479e-05,2]
[422392297,1778922643000,-231.50983333,5.479e-05,7]
[422392320,1778922643000,-318.69812751,5.479e-05,2]
[422392345,1778922643000,-165.24668692,5.479e-05,7]
[422392321,1778922643000,-155.05199374,5.479e-05,7]
[422392344,1778922643000,-562.49380986,5.479e-05,7]
[422392343,1778922643000,-374.99587324,5.479e-05,7]
[422392340,1778922643000,-182.95967554,5.479e-05,7]
[422392341,1778922643000,-374.69800626,5.479e-05,7]
[422392337,1778922643000,-734.36574877,5.479e-05,7]
[422392339,1778922643000,-244.78858292,5.479e-05,7]
[422392342,1778922643000,-187.49793662,5.479e-05,7]
[422392334,1778922643000,-540.81710488,5.479e-05,7]
[422392333,1778922643000,-360.54473659,5.479e-05,7]
[422392336,1778922643000,-253.87145211,5.479e-05,7]
[422392338,1778922643000,-489.57716585,5.479e-05,7]
[422392332,1778922643000,-886.92216585,5.479e-05,7]
[422392331,1778922643000,-180.27236829,5.479e-05,7]
[422392330,1778922643000,-591.2814439,5.479e-05,7]
[422392329,1778922643000,-201.84747408,5.479e-05,7]
[422392328,1778922643000,-667.22284769,5.479e-05,7]
[422392325,1778922643000,-1000.83427153,5.479e-05,7]
[422392322,1778922643000,-478.04719127,5.479e-05,2]
[422392323,1778922643000,-168.32652855,5.479e-05,7]
[422392327,1778922643000,-338.34394691,5.479e-05,7]
[422392326,1778922643000,-169.17197345,5.479e-05,7]
[422392335,1778922643000,-295.64072195,5.479e-05,7]
[422392324,1778922643000,-333.61142384,5.479e-05,7]
[422392386,1778922644000,-483.20132959,5.479e-05,7]
[422392385,1778922644000,-577.50025688,5.479e-05,2]
[422392392,1778922644000,-158.81481481,5.479e-05,7]
[422392393,1778922644000,-476.44444444,5.479e-05,7]
[422392381,1778922644000,-316.86125661,5.479e-05,7]
[422392384,1778922644000,-192.50008563,5.479e-05,2]
[422392383,1778922644000,-385.00017126,5.479e-05,2]
[422392382,1778922644000,-475.29188492,5.479e-05,7]
[422392379,1778922644000,-408.14289203,5.479e-05,7]
[422392378,1778922644000,-204.07144601,5.479e-05,7]
[422392391,1778922644000,-641.15662881,5.479e-05,7]
[422392387,1778922644000,-241.6006648,5.479e-05,7]
[422392390,1778922644000,-427.43775254,5.479e-05,7]
[422392407,1778922644000,-473.11191575,5.479e-05,7]
[422392389,1778922644000,-213.71887627,5.479e-05,7]
[422392388,1778922644000,-724.80199439,5.479e-05,7]
[422392396,1778922644000,-303.53791025,5.479e-05,7]
[422392395,1778922644000,-162.5462132,5.479e-05,7]
[422392398,1778922644000,-910.61373075,5.479e-05,7]
[422392397,1778922644000,-607.0758205,5.479e-05,7]
[422392400,1778922644000,-305.06878622,5.479e-05,7]
[422392399,1778922644000,-152.53439311,5.479e-05,7]
[422392401,1778922644000,-457.60317933,5.479e-05,7]
[422392402,1778922644000,-310.74199165,5.479e-05,7]
[422392380,1778922644000,-158.43062831,5.479e-05,7]
[422392404,1778922644000,-466.11298747,5.479e-05,7]
[422392405,1778922644000,-236.55595788,5.479e-05,7]
[422392403,1778922644000,-155.37099582,5.479e-05,7]
[422392394,1778922644000,-317.62962963,5.479e-05,7]
[422392371,1778922644000,-368.6934396,5.479e-05,7]
[422392366,1778922644000,-554.10081302,5.479e-05,5]
[422392373,1778922644000,-221.4172683,5.479e-05,7]
[422392406,1778922644000,-709.66787363,5.479e-05,7]
[422392347,1778922644000,-323.78458459,5.479e-05,2]
[422392348,1778922644000,-330.49337383,5.479e-05,7]
[422392346,1778922644000,-495.74006075,5.479e-05,7]
[422392354,1778922644000,-166.36274527,5.479e-05,7]
[422392353,1778922644000,-648.45770121,5.479e-05,7]
[422392349,1778922644000,-216.15256707,5.479e-05,7]
[422392350,1778922644000,-485.67687688,5.479e-05,2]
[422392352,1778922644000,-161.89229229,5.479e-05,2]
[422392351,1778922644000,-432.30513414,5.479e-05,7]
[422392355,1778922644000,-332.72549053,5.479e-05,7]
[422392356,1778922644000,-332.00902812,5.479e-05,7]
[422392357,1778922644000,-176.07596587,5.479e-05,7]
[422392359,1778922644000,-447.51613623,5.479e-05,7]
[422392362,1778922644000,-365.87657197,5.479e-05,7]
[422392360,1778922644000,-352.15193175,5.479e-05,7]
[422392363,1778922644000,-548.81485796,5.479e-05,7]
[422392358,1778922644000,-528.22789762,5.479e-05,7]
[422392361,1778922644000,-182.93828599,5.479e-05,7]
[422392365,1778922644000,-369.40054201,5.479e-05,5]
[422392364,1778922644000,-184.70027101,5.479e-05,5]
[422392367,1778922644000,-190.57798228,5.479e-05,7]
[422392368,1778922644000,-381.15596456,5.479e-05,7]
[422392369,1778922644000,-571.73394684,5.479e-05,7]
[422392370,1778922644000,-184.3467198,5.479e-05,7]
[422392372,1778922644000,-553.0401594,5.479e-05,7]
[422392375,1778922644000,-664.25180489,5.479e-05,7]
[422392377,1778922644000,-485.66803131,5.479e-05,7]
[422392376,1778922644000,-242.83401565,5.479e-05,7]
[422392374,1778922644000,-442.83453659,5.479e-05,7]
[422392408,1778922644000,-312.79524413,5.479e-05,7]
[422392460,1778922644000,-152.0,5.522e-05,7]
[422392410,1778922644000,-332.72408794,5.479e-05,7]
[422392442,1778922644000,-512.08809418,5.479e-05,2]
[422392445,1778922644000,-279.61830611,5.479e-05,7]
[422392444,1778922644000,-538.20804677,5.479e-05,7]
[422392447,1778922644000,-502.34256292,5.479e-05,7]
[422392450,1778922644000,-523.85933308,5.479e-05,4]
[422392449,1778922644000,-307.0044699,5.479e-05,7]
[422392456,1778922644000,-575.01919997,5.479e-05,7]
[422392454,1778922644000,-583.31880713,5.479e-05,7]
[422392452,1778922644000,-587.40614156,5.479e-05,7]
[422392457,1778922644000,-345.66977085,5.479e-05,7]
[422392453,1778922644000,-209.34287038,5.479e-05,7]
[422392451,1778922644000,-561.93609108,5.479e-05,7]
[422392455,1778922644000,-506.30035585,5.479e-05,7]
[422392446,1778922644000,-777.82110763,5.479e-05,7]
[422392458,1778922644000,-607.03859352,5.479e-05,7]
[422392461,1778922644000,-152.0,5.522e-05,7]
[422392471,1778922644000,-300.0,5.588e-05,2]
[422392462,1778922644000,-152.0,5.529e-05,7]
[422392466,1778922644000,-300.0,5.588e-05,2]
[422392464,1778922644000,-152.0,5.531e-05,7]
[422392467,1778922644000,-300.0,5.588e-05,2]
[422392463,1778922644000,-152.0,5.529e-05,7]
[422392465,1778922644000,-152.0,5.531e-05,7]
[422392468,1778922644000,-300.0,5.588e-05,2]
[422392469,1778922644000,-300.0,5.588e-05,2]
[422392470,1778922644000,-300.0,5.588e-05,2]
[422392472,1778922644000,-300.0,5.588e-05,2]
[422392409,1778922644000,-166.36204397,5.479e-05,7]
[422392459,1778922644000,-512.02729041,5.479e-05,7]
[422392441,1778922644000,-736.62102378,5.479e-05,7]
[422392443,1778922644000,-368.8354081,5.479e-05,7]
[422392448,1778922644000,-451.80943034,5.479e-05,7]
[422392412,1778922644000,-499.08613191,5.479e-05,7]
[422392413,1778922644000,-540.48491168,5.479e-05,7]
[422392421,1778922644000,-342.75600286,5.479e-05,7]
[422392415,1778922644000,-249.42346681,5.479e-05,7]
[422392418,1778922644000,-334.41089359,5.479e-05,7]
[422392417,1778922644000,-167.2054468,5.479e-05,7]
[422392414,1778922644000,-180.16163723,5.479e-05,7]
[422392420,1778922644000,-171.37800143,5.479e-05,7]
[422392419,1778922644000,-501.61634039,5.479e-05,7]
[422392416,1778922644000,-498.84693362,5.479e-05,7]
[422392439,1778922644000,-506.45318694,5.479e-05,7]
[422392423,1778922644000,-168.58913184,5.479e-05,7]
[422392422,1778922644000,-514.1340043,5.479e-05,7]
[422392424,1778922644000,-208.4967393,5.479e-05,7]
[422392434,1778922644000,-585.49040701,5.479e-05,7]
[422392411,1778922644000,-360.32327445,5.479e-05,7]
[422392425,1778922644000,-267.41639315,5.479e-05,2]
[422392440,1778922644000,-517.34812419,5.479e-05,7]
[422392437,1778922644000,-232.36095517,5.479e-05,7]
[422392427,1778922644000,-534.8327863,5.479e-05,2]
[422392436,1778922644000,-454.80694411,5.479e-05,7]
[422392435,1778922644000,-2422.86928564,5.479e-05,7]
[422392428,1778922644000,-209.22100166,5.479e-05,7]
[422392438,1778922644000,-552.63535435,5.479e-05,7]
[422392429,1778922644000,-418.44200333,5.479e-05,7]
[422392430,1778922644000,-627.66300499,5.479e-05,7]
[422392432,1778922644000,-315.67833041,5.479e-05,7]
[422392433,1778922644000,-522.07891993,5.479e-05,7]
[422392426,1778922644000,-375.00841103,5.479e-05,7]
[422392431,1778922644000,-211.6273567,5.479e-05,7]
[422392485,1778922645000,-606.40925881,5.781e-05,7]
[422392473,1778922645000,-300.0,5.588e-05,2]
[422392477,1778922645000,-300.0,5.588e-05,2]
[422392479,1778922645000,-300.0,5.588e-05,2]
[422392480,1778922645000,-300.0,5.588e-05,2]
[422392484,1778922645000,-780.65387602,5.781e-05,7]
[422392475,1778922645000,-300.0,5.588e-05,2]
[422392481,1778922645000,-600.0,5.588e-05,2]
[422392474,1778922645000,-300.0,5.588e-05,2]
[422392482,1778922645000,-151.0,5.702e-05,2]
[422392476,1778922645000,-300.0,5.588e-05,2]
[422392478,1778922645000,-300.0,5.588e-05,2]
[422392487,1778922645000,-689.79749892,5.781e-05,7]
[422392486,1778922645000,-736.84713914,5.781e-05,7]
[422392488,1778922645000,-982.16136504,5.781e-05,7]
[422392494,1778922645000,-158.799142,5.781e-05,7]
[422392489,1778922645000,-682.78412557,5.781e-05,2]
[422392490,1778922645000,-1037.09481017,5.781e-05,7]
[422392491,1778922645000,-669.7900839,5.781e-05,7]
[422392492,1778922645000,-602.41257379,5.781e-05,7]
[422392493,1778922645000,-5.78031385,5.781e-05,7]
[422392483,1778922645000,-3230.49238085,5.781e-05,7]
[422392509,1778922646000,-682.45610448,5.781e-05,7]
[422392517,1778922646000,-612.05748308,5.781e-05,2]
[422392513,1778922646000,-661.27307358,5.781e-05,7]
[422392515,1778922646000,-695.09143129,5.781e-05,7]
[422392518,1778922646000,-662.03030973,5.781e-05,7]
[422392521,1778922646000,-693.7482606,5.781e-05,7]
[422392519,1778922646000,-706.62635329,5.781e-05,7]
[422392527,1778922646000,-755.23873492,5.781e-05,7]
[422392516,1778922646000,-1136.25925418,5.781e-05,7]
[422392528,1778922646000,-4865.45857862,5.781e-05,7]
[422392520,1778922646000,-703.53993041,5.781e-05,7]
[422392511,1778922646000,-268.49863858,5.781e-05,7]
[422392507,1778922646000,-751.65908492,5.781e-05,7]
[422392514,1778922646000,-1076.07320871,5.781e-05,7]
[422392510,1778922646000,-617.72910351,5.781e-05,7]
[422392508,1778922646000,-704.00545688,5.781e-05,7]
[422392531,1778922646000,-681.75175231,5.781e-05,7]
[422392506,1778922646000,-797.69947119,5.781e-05,7]
[422392505,1778922646000,-684.78344193,5.781e-05,4]
[422392503,1778922646000,-611.37586914,5.781e-05,7]
[422392504,1778922646000,-624.72269573,5.781e-05,7]
[422392501,1778922646000,-173.98008524,5.781e-05,7]
[422392502,1778922646000,-690.4098199,5.781e-05,7]
[422392500,1778922646000,-3365.40399737,5.781e-05,7]
[422392499,1778922646000,-563.90899893,5.781e-05,7]
[422392498,1778922646000,-5000.0,5.425e-05,2]
[422392512,1778922646000,-517.58743766,5.781e-05,7]
[422392530,1778922646000,-1976.76429393,5.781e-05,7]
[422392522,1778922646000,-661.83053053,5.781e-05,7]
[422392525,1778922646000,-1158.11117794,5.781e-05,7]
[422392555,1778922646000,-720.64654891,5.781e-05,7]
[422392552,1778922646000,-621.4839833,5.781e-05,7]
[422392553,1778922646000,-946.22383151,5.781e-05,7]
[422392529,1778922646000,-640.90079141,5.781e-05,7]
[422392550,1778922646000,-1214.15164099,5.781e-05,7]
[422392549,1778922646000,-635.25925926,5.781e-05,7]
[422392546,1778922646000,-885.66907319,5.781e-05,7]
[422392548,1778922646000,-770.00034251,5.781e-05,2]
[422392545,1778922646000,-737.3868792,5.781e-05,7]
[422392547,1778922646000,-633.72251323,5.781e-05,7]
[422392551,1778922646000,-610.13757244,5.781e-05,7]
[422392544,1778922646000,-762.31192912,5.781e-05,7]
[422392542,1778922646000,-731.75314395,5.781e-05,7]
[422392554,1778922646000,-665.44817588,5.781e-05,7]
[422392540,1778922646000,-647.56916918,5.781e-05,2]
[422392543,1778922646000,-738.80108402,5.781e-05,5]
[422392524,1778922646000,-749.43036236,5.781e-05,7]
[422392526,1778922646000,-858.09662114,5.781e-05,7]
[422392532,1778922646000,-733.18296213,5.781e-05,7]
[422392533,1778922646000,-621.74145823,5.781e-05,7]
[422392535,1778922646000,-637.39625502,5.781e-05,2]
[422392523,1778922646000,-606.27550697,5.781e-05,7]
[422392536,1778922646000,-1334.44569538,5.781e-05,7]
[422392541,1778922646000,-704.30386349,5.781e-05,7]
[422392537,1778922646000,-1182.5628878,5.781e-05,7]
[422392539,1778922646000,-660.98674767,5.781e-05,7]
[422392538,1778922646000,-979.1543317,5.781e-05,7]
[422392534,1778922646000,-620.20797495,5.781e-05,7]
[422392567,1778922647000,-500.0,6.231e-05,2]
[422392579,1778922647000,-758.01157352,6.234e-05,7]
[422392582,1778922647000,-1227.70170631,6.234e-05,7]
[422392581,1778922647000,-862.24687365,6.234e-05,7]
[422392572,1778922647000,-500.0,6.231e-05,2]
[422392570,1778922647000,-500.0,6.231e-05,2]
[422392569,1778922647000,-500.0,6.231e-05,2]
[422392565,1778922647000,-500.0,6.231e-05,2]
[422392568,1778922647000,-500.0,6.231e-05,2]
[422392563,1778922647000,-682.70305388,5.781e-05,7]
[422392560,1778922647000,-777.75840951,5.781e-05,7]
[422392575,1778922647000,-500.0,6.231e-05,2]
[422392558,1778922647000,-749.24812145,5.781e-05,7]
[422392559,1778922647000,-783.20818875,5.781e-05,7]
[422392562,1778922647000,-809.38479136,5.781e-05,7]
[422392564,1778922647000,-720.0,6.147e-05,2]
[422392561,1778922647000,-766.69226662,5.781e-05,7]
[422392557,1778922647000,-685.51200573,5.781e-05,7]
[422392556,1778922647000,-668.82178719,5.781e-05,7]
[422392566,1778922647000,-500.0,6.231e-05,2]
[422392571,1778922647000,-500.0,6.231e-05,2]
[422392587,1778922647000,-4424.23010326,6.234e-05,7]
[422392576,1778922647000,-500.0,6.231e-05,2]
[422392596,1778922647000,-1345.09151089,6.234e-05,7]
[422392598,1778922647000,-1284.40005912,6.234e-05,7]
[422392597,1778922647000,-868.86428911,6.234e-05,7]
[422392595,1778922647000,-826.59134198,6.234e-05,7]
[422392591,1778922647000,-982.6075953,6.234e-05,7]
[422392589,1778922647000,-855.97930242,6.234e-05,4]
[422392588,1778922647000,-764.21983643,6.234e-05,7]
[422392592,1778922647000,-880.0068211,6.234e-05,7]
[422392590,1778922647000,-939.57385615,6.234e-05,7]
[422392577,1778922647000,-4038.11547607,6.234e-05,7]
[422392584,1778922647000,-1296.36851272,6.234e-05,7]
[422392578,1778922647000,-975.81734502,6.234e-05,7]
[422392573,1778922647000,-500.0,6.231e-05,2]
[422392580,1778922647000,-921.05892392,6.234e-05,7]
[422392574,1778922647000,-500.0,6.231e-05,2]
[422392586,1778922647000,-753.01571723,6.234e-05,7]
[422392585,1778922647000,-837.23760487,6.234e-05,7]
[422392593,1778922647000,-853.0701306,6.234e-05,7]
[422392594,1778922647000,-772.16137939,6.234e-05,7]
[422392583,1778922647000,-853.48015696,6.234e-05,2]
[422392632,1778923319000,-181.65056071,5.479e-05,7]
[422392631,1778923319000,-474.62711118,5.479e-05,7]
[422392634,1778923319000,-357.61813254,5.479e-05,7]
[422392633,1778923319000,-363.30112142,5.479e-05,7]
[422392636,1778923319000,-317.71261692,5.479e-05,7]
[422392637,1778923319000,-219.92053076,5.479e-05,7]
[422392639,1778923319000,-659.76159227,5.479e-05,7]
[422392635,1778923319000,-410.84392037,5.479e-05,7]
[422392638,1778923319000,-439.84106152,5.479e-05,7]
[422392641,1778923319000,-334.93089882,5.479e-05,7]
[422392640,1778923319000,-167.46544941,5.479e-05,7]
[422392643,1778923319000,-331.9124928,5.479e-05,7]
[422392644,1778923319000,-362.6825173,5.479e-05,7]
[422392645,1778923319000,-497.8687392,5.479e-05,7]
[422392647,1778923319000,-2078.87775632,5.479e-05,7]
[422392646,1778923319000,-361.78798539,5.479e-05,7]
[422392648,1778923319000,-3118.31663448,5.479e-05,7]
[422392649,1778923319000,-324.64369158,5.479e-05,7]
[422392650,1778923319000,-486.96553737,5.479e-05,7]
[422392651,1778923319000,-844.61747104,5.479e-05,7]
[422392642,1778923319000,-502.39634823,5.479e-05,7]
[422392655,1778923320000,-491.53587236,5.479e-05,7]
[422392653,1778923320000,-163.84529079,5.479e-05,7]
[422392652,1778923320000,-1266.92620656,5.479e-05,7]
[422392656,1778923320000,-317.09302904,5.479e-05,7]
[422392658,1778923320000,-368.6934396,5.479e-05,7]
[422392654,1778923320000,-327.69058158,5.479e-05,7]
[422392657,1778923320000,-475.63954356,5.479e-05,7]
[422392660,1778923320000,-342.75600286,5.479e-05,7]
[422392661,1778923320000,-514.1340043,5.479e-05,7]
[422392663,1778923320000,-239.26016672,5.479e-05,7]
[422392662,1778923320000,-1101.6435336,5.479e-05,7]
[422392659,1778923320000,-553.0401594,5.479e-05,7]
[422392674,1778923602000,175.505,5e-05,2]
[422392675,1778923617000,5000.0,5e-05,2]
[422392688,1778923783000,29109.1670443,4.493e-05,2]
[422392880,1778923835000,-308.49964027,5.479e-05,2]
[422392879,1778923835000,-348.33513829,5.323e-05,2]
[422392916,1778923836000,-460.21192871,5.479e-05,7]
[422392919,1778923836000,-485.67687688,5.479e-05,2]
[422392922,1778923836000,-494.02769338,5.479e-05,7]
[422392914,1778923836000,-652.10124251,5.479e-05,7]
[422392903,1778923836000,-158.81498523,5.479e-05,7]
[422392913,1778923836000,-434.73416167,5.479e-05,7]
[422392912,1778923836000,-652.90534979,5.479e-05,7]
[422392911,1778923836000,-431.50613744,5.479e-05,7]
[422392917,1778923836000,-613.61590495,5.479e-05,7]
[422392907,1778923836000,-157.34140311,5.479e-05,7]
[422392923,1778923836000,-658.70359117,5.479e-05,7]
[422392915,1778923836000,-306.80795247,5.479e-05,7]
[422392935,1778923836000,-627.54891259,5.479e-05,7]
[422392920,1778923836000,-647.56916917,5.479e-05,2]
[422392921,1778923836000,-329.35179558,5.479e-05,7]
[422392925,1778923836000,-414.30756577,5.479e-05,2]
[422392926,1778923836000,-621.46134865,5.479e-05,2]
[422392927,1778923836000,-494.82932148,5.479e-05,7]
[422392929,1778923836000,-712.09548876,5.479e-05,7]
[422392933,1778923836000,-478.40174732,5.479e-05,7]
[422392928,1778923836000,-505.27687024,5.479e-05,7]
[422392931,1778923836000,-757.91530536,5.479e-05,7]
[422392932,1778923836000,-532.15199316,5.479e-05,7]
[422392908,1778923836000,-314.68280623,5.479e-05,7]
[422392918,1778923836000,-323.78458459,5.479e-05,2]
[422392906,1778923836000,-182.12551174,5.479e-05,7]
[422392887,1778923836000,-81.75945817,5.479e-05,7]
[422392904,1778923836000,-317.62997047,5.479e-05,7]
[422392881,1778923836000,-462.7494604,5.479e-05,2]
[422392882,1778923836000,-153.9168925,5.479e-05,5]
[422392884,1778923836000,-234.51198425,5.479e-05,7]
[422392883,1778923836000,-311.56160008,5.479e-05,7]
[422392886,1778923836000,-387.26451034,5.479e-05,7]
[422392930,1778923836000,-30.14849347,5.479e-05,7]
[422392889,1778923836000,-434.16998993,5.479e-05,7]
[422392885,1778923836000,-307.83378501,5.479e-05,5]
[422392888,1778923836000,-152.89239864,5.479e-05,7]
[422392890,1778923836000,-172.5356749,5.479e-05,7]
[422392891,1778923836000,-172.89633594,5.479e-05,7]
[422392905,1778923836000,-396.07657076,5.479e-05,7]
[422392894,1778923836000,-584.00952071,5.479e-05,7]
[422392897,1778923836000,-429.64138598,5.479e-05,7]
[422392892,1778923836000,-518.14801626,5.479e-05,7]
[422392893,1778923836000,-389.33968048,5.479e-05,7]
[422392896,1778923836000,-324.22885061,5.479e-05,7]
[422392899,1778923836000,-347.26474999,5.479e-05,7]
[422392898,1778923836000,-644.46207898,5.479e-05,7]
[422392909,1778923836000,-326.4526749,5.479e-05,7]
[422392902,1778923836000,-270.40855245,5.479e-05,7]
[422392910,1778923836000,-489.67901235,5.479e-05,7]
[422392901,1778923836000,-369.02878049,5.479e-05,7]
[422392900,1778923836000,-184.51439025,5.479e-05,7]
[422392895,1778923836000,-778.67936095,5.479e-05,7]
[422392934,1778923836000,-418.36594172,5.479e-05,7]
[422392924,1778923836000,-401.91149231,5.479e-05,7]
[422392936,1778923836000,-836.73188345,5.479e-05,7]
[422392965,1778923836000,-390.45168484,5.507e-05,7]
[422392964,1778923836000,-476.56892538,5.507e-05,7]
[422392966,1778923836000,-391.63931298,5.507e-05,7]
[422392967,1778923836000,-879.68212303,5.507e-05,7]
[422392969,1778923836000,-616.99928054,5.507e-05,2]
[422392971,1778923836000,-649.28738315,5.507e-05,7]
[422392970,1778923836000,-4157.75551264,5.507e-05,7]
[422392968,1778923836000,-669.86179764,5.507e-05,7]
[422392972,1778923836000,-1689.23494209,5.507e-05,7]
[422392977,1778923836000,-362.40099719,5.507e-05,7]
[422392976,1778923836000,-737.3868792,5.507e-05,7]
[422392975,1778923836000,-634.18605809,5.507e-05,7]
[422392978,1778923836000,-187.0676001,5.507e-05,7]
[422392987,1778923836000,-300.0,5.588e-05,2]
[422392979,1778923836000,-415.90510993,5.507e-05,7]
[422392985,1778923836000,-300.0,5.588e-05,2]
[422392982,1778923836000,-1652.4653004,5.507e-05,7]
[422392981,1778923836000,-200.56229487,5.507e-05,2]